bitfinex/quotes_ETHUSD_20220227
["timestamp","ask_amount","ask_price","bid_price","bid_amount"]
[1645936647668,11.22,2713.2,2712.9,2.10371977]
[1645936647868,11.22,2713.2,2712.9,2.10792128]
[1645936648269,11.22,2713.3,2712.9,2.10792128]
[1645936648869,11.22,2713.3,2712.9,2.10371977]
[1645936649070,11.22,2713.3,2712.9,2.10792128]
[1645936649972,11.22,2713.3,2712.9,2.10371977]
[1645936650230,11.22,2713.3,2712.9,2.10792889]
[1645936651223,11.22,2713.3,2712.9,2.10371977]
[1645936651423,11.22,2713.4,2712.9,2.10792889]
[1645936651727,7.89354457,2713.7,2713.1,0.3675]
[1645936651728,3.00565712,2713.7,2713.1,0.3675]
[1645936651923,0.1474,2713.8,2713.5,1.39708458]
[1645936651924,0.69316366,2713.8,2713.5,1.39708458]
[1645936652523,11.22,2713.7,2713.5,1.39708458]
[1645936653024,11.22,2713.7,2713.1,1.1825]
[1645936653227,0.69316366,2713.8,2713.1,1.1825]
[1645936654274,11.91316366,2713.8,2713.1,1.1825]
[1645936654776,11.22,2713.8,2713.1,1.1825]
[1645936654976,11.22167361,2713.8,2713.1,1.1825]
[1645936655379,11.22167361,2713.8,2713.4,1.42058134]
[1645936655581,0.24059797,2713.3,2713.2,1.06181816]
[1645936656186,0.24059797,2713.3,2713.2,2.21599357]
[1645936656585,0.24059797,2713.3,2713.2,1.72931816]
[1645936656787,0.24059797,2713.3,2713.2,1.62931816]
[1645936657188,0.24059797,2713.3,2713.2,2.11599357]
[1645936659915,0.24059797,2713.3,2713.2,1.91599357]
[1645936661316,0.24059797,2713.3,2713.2,2.21599357]
[1645936663370,0.24059797,2713.3,2713.2,2.74599357]
[1645936663575,0.24059797,2713.3,2713.2,3.74599357]
[1645936664175,0.24059797,2713.3,2713.2,2.37849357]
[1645936664374,0.24059797,2713.3,2713.2,3.37849357]
[1645936664774,0.24059797,2713.3,2713.2,2.74599357]
[1645936664976,0.24059797,2713.3,2713.2,3.74599357]
[1645936665235,0.24059797,2713.3,2713.2,2.74599357]
[1645936665427,0.24059797,2713.3,2713.2,3.74599357]
[1645936665628,0.24059797,2713.3,2713.2,3.37849357]
[1645936665830,0.24059797,2713.3,2713.2,2.37849357]
[1645936666028,0.24059797,2713.3,2713.2,3.37849357]
[1645936666234,0.24059797,2713.3,2713.2,2.37849357]
[1645936666429,0.24059797,2713.3,2713.2,3.37849357]
[1645936666630,0.24059797,2713.3,2713.2,2.37849357]
[1645936667631,0.24059797,2713.3,2713.2,2.74599357]
[1645936668030,0.24059797,2713.3,2713.2,1.59181816]
[1645936669070,0.24059797,2713.3,2713.2,1.06181816]
[1645936670676,0.24059797,2713.3,2713.2,1.36181816]
[1645936675330,0.24059797,2713.3,2713.2,1.89181816]
[1645936681019,0.23919486,2713.3,2713.2,1.89181816]
[1645936684080,0.23919486,2713.3,2713.2,1.36181816]
[1645936684283,0.23919486,2713.3,2713.1,2.96917541]
[1645936684486,0.23919486,2713.3,2713.1,0.78667541]
[1645936684683,0.23919486,2713.3,2713.1,1.78667541]
[1645936684886,0.23919486,2713.3,2713.1,0.78667541]
[1645936685281,0.23919486,2713.3,2713.2,1.4288143]
[1645936686287,0.23919486,2713.3,2713.1,0.78667541]
[1645936686484,0.23919486,2713.3,2712.9,2.89459914]
[1645936686882,0.60669486,2713.3,2712.9,2.89459914]
[1645936687086,0.60669486,2713.3,2712.9,2.59459914]
[1645936687283,0.60669486,2713.3,2712.9,2.59039518]
[1645936687484,0.60669486,2713.3,2712.9,2.59459914]
[1645936687724,2.01758778,2713.3,2712.9,2.59459914]
[1645936687921,0.60669486,2713.3,2712.9,2.59459914]
[1645936688127,0.23919486,2713.3,2713.2,0.48667541]
[1645936688322,0.23919486,2713.3,2713.2,0.78667541]
[1645936688525,0.23919486,2713.3,2713.2,1.31667541]
[1645936688924,0.23919486,2713.3,2713.2,2.57997178]
[1645936689127,0.23919486,2713.3,2713.2,0.3]
[1645936689427,0.23919486,2713.3,2712.9,2.10371977]
[1645936689630,0.60669486,2713.3,2712.9,2.40371977]
[1645936689825,0.60669486,2713.3,2712.9,2.40498422]
[1645936690427,0.60669486,2713.3,2712.9,3.56688314]
[1645936690828,0.60669486,2713.3,2712.9,3.56561869]
[1645936691029,0.60669486,2713.3,2712.9,3.56712091]
[1645936691984,0.60669486,2713.3,2712.9,3.56561869]
[1645936692185,0.60669486,2713.3,2713.2,0.48667541]
[1645936692380,0.23919486,2713.3,2712.9,3.57061519]
[1645936692582,0.23919486,2713.3,2713.0,0.48667541]
[1645936694281,0.23919486,2713.3,2712.9,3.57061519]
[1645936694482,0.23919486,2713.3,2713.2,0.48667541]
[1645936694881,0.23919486,2713.3,2713.2,0.78667541]
[1645936696932,0.23919486,2713.3,2713.2,1.31667541]
[1645936702179,0.23762599,2713.3,2713.2,1.31667541]
[1645936709779,0.00167361,2714.1,2713.3,7.52376259]
[1645936709979,0.00167361,2714.2,2714.0,0.48667541]
[1645936710220,0.00167361,2714.3,2714.0,0.78667541]
[1645936710429,1.2131,2714.7,2714.0,0.83]
[1645936710430,1.58016113,2714.6,2714.0,0.83]
[1645936710626,1.55657555,2714.5,2714.0,0.83]
[1645936710827,1.55657555,2714.5,2714.4,0.48667541]
[1645936711029,1.55657555,2714.5,2714.4,1.69630969]
[1645936711325,0.36917361,2714.8,2714.4,1.69630969]
[1645936711526,1.55656069,2714.7,2714.4,1.69630969]
[1645936712426,11.39246337,2715.0,2714.4,1.69630969]
[1645936712427,1.55656069,2714.6,2714.4,1.69630969]
[1645936712625,0.3675,2714.8,2714.4,1.69630969]
[1645936712823,1.55658322,2714.7,2714.4,1.69630969]
[1645936713625,1.55658322,2714.6,2714.4,1.69630969]
[1645936713827,0.3675,2714.8,2714.4,1.69630969]
[1645936714080,1.55659162,2714.7,2714.4,1.69630969]
[1645936714282,1.55659162,2714.7,2714.4,1.20963428]
[1645936714483,1.55659162,2714.7,2714.6,0.48667541]
[1645936714680,1.55659162,2714.8,2714.6,0.48667541]
[1645936714880,1.92409162,2714.8,2714.4,1.20963428]
[1645936715082,1.55659162,2714.7,2714.4,1.69630969]
[1645936715892,0.37190246,2714.9,2714.4,1.69630969]
[1645936716087,1.924087,2714.8,2714.4,1.69630969]
[1645936716287,1.556587,2714.7,2714.4,1.20963428]
[1645936716490,1.556587,2714.7,2714.6,0.48667541]
[1645936716988,0.00590014,2714.9,2714.6,0.78667541]
[1645936717186,11.22,2715.0,2714.6,0.78667541]
[1645936717387,1.55644322,2714.9,2714.6,0.3]
[1645936717590,16.64984352,2714.9,2713.8,0.25]
[1645936717824,16.64984352,2714.9,2713.7,1.0]
[1645936717825,11.5875,2714.7,2713.7,1.0]
[1645936718023,11.5875,2714.5,2713.5,1.66447541]
[1645936718225,0.3675,2714.3,2713.5,1.66447541]
[1645936718625,1.32615426,2713.9,2713.5,1.66447541]
[1645936718824,3.50167361,2714.4,2713.5,1.66447541]
[1645936718825,0.36917361,2714.2,2713.5,1.66447541]
[1645936719124,0.36917361,2714.3,2713.5,1.96447541]
[1645936719824,0.00167361,2714.3,2713.5,1.96447541]
[1645936720428,0.36917361,2714.3,2713.5,1.96447541]
[1645936721231,0.31917361,2714.3,2713.5,1.96447541]
[1645936721879,0.31917361,2714.3,2713.5,2.12728321]
[1645936722684,0.31917361,2714.3,2713.5,0.78667541]
[1645936723985,0.31917361,2714.3,2713.6,1.06057897]
[1645936724186,0.3675,2714.3,2713.5,0.78667541]
[1645936724386,0.3675,2714.3,2713.5,1.08667541]
[1645936724587,0.36915905,2714.3,2713.5,0.78667541]
[1645936725318,0.36915905,2714.3,2713.6,1.25021359]
[1645936725920,0.00165905,2714.3,2713.6,1.25021359]
[1645936727020,0.00165905,2714.3,2714.2,0.48667541]
[1645936727222,0.00165905,2714.5,2714.2,0.48667541]
[1645936727422,0.02359935,2714.6,2714.3,0.53]
[1645936727620,0.02359935,2714.6,2714.5,0.48667541]
[1645936727820,0.02359935,2714.6,2714.5,0.78667541]
[1645936728020,0.3675,2715.0,2714.5,0.78667541]
[1645936728221,1.55644536,2714.9,2714.5,0.78667541]
[1645936728422,0.00575012,2714.9,2714.5,0.78667541]
[1645936728826,0.00575012,2714.9,2714.5,0.3]
[1645936729068,0.00575012,2714.9,2714.5,0.48667541]
[1645936729268,0.3675,2715.0,2714.5,0.48667541]
[1645936729269,12.89042863,2715.0,2714.5,0.78667541]
[1645936729471,0.00575036,2714.9,2714.5,0.78667541]
[1645936730274,0.00575036,2714.9,2714.5,0.3]
[1645936730476,11.5875,2715.0,2714.5,0.78667541]
[1645936730675,1.55649733,2714.9,2714.5,0.78667541]
[1645936730876,1.56224769,2714.9,2714.5,0.3]
[1645936731076,0.00575036,2714.9,2714.4,0.3]
[1645936731280,1.60458032,2714.9,2714.3,2.191055]
[1645936731478,0.37325036,2714.9,2714.3,2.191055]
[1645936731675,0.3675,2714.9,2714.3,2.191055]
[1645936731876,0.37340022,2714.9,2714.3,2.191055]
[1645936732478,0.00590022,2714.9,2714.3,2.191055]
[1645936732949,11.5875,2715.0,2714.3,2.191055]
[1645936733150,0.00590022,2714.9,2714.3,2.191055]
[1645936733349,1.66494885,2714.9,2714.3,2.191055]
[1645936733650,1.66494885,2714.9,2714.3,0.78667541]
[1645936733853,1.55653502,2714.8,2714.3,0.78667541]
[1645936735852,13.14403502,2714.8,2714.3,0.78667541]
[1645936736053,13.14403502,2714.8,2713.9,4.5488]
[1645936736054,11.5875,2714.6,2713.7,0.25]
[1645936736253,1.55653502,2714.7,2713.6,0.48667541]
[1645936736254,11.5875,2714.4,2713.6,0.48667541]
[1645936736502,3.5,2714.3,2713.6,0.48667541]
[1645936736694,0.00165905,2714.3,2713.6,0.43667541]
[1645936736891,1.28852974,2713.9,2713.6,0.43667541]
[1645936737192,1.22735905,2714.3,2713.6,0.43667541]
[1645936737391,1.2257,2714.3,2713.6,0.73667541]
[1645936737591,1.22735905,2714.3,2713.6,0.73667541]
[1645936738693,1.2627024,2714.0,2713.6,0.73667541]
[1645936739094,1.22735905,2714.3,2713.6,0.73667541]
[1645936739299,1.2257,2714.3,2713.6,0.73667541]
[1645936740098,1.16395371,2714.0,2713.6,0.73667541]
[1645936740327,0.00165905,2714.2,2713.6,0.73667541]
[1645936740530,1.2257,2714.3,2713.6,0.73667541]
[1645936741328,1.36582862,2714.0,2713.6,0.43667541]
[1645936741933,0.00165905,2714.2,2713.6,0.43667541]
[1645936742129,1.22735905,2714.3,2713.6,0.43667541]
[1645936742531,1.22735905,2714.3,2713.6,0.73667541]
[1645936742731,1.55678217,2714.2,2713.6,0.73667541]
[1645936742930,1.22735905,2714.3,2713.6,0.73667541]
[1645936743331,1.55678381,2714.2,2713.6,0.73667541]
[1645936743631,1.13517988,2714.0,2713.6,0.73667541]
[1645936743831,1.22735905,2714.3,2713.6,0.73667541]
[1645936744081,1.2257,2714.3,2713.6,0.73667541]
[1645936744283,1.55677782,2714.2,2713.6,0.73667541]
[1645936744883,1.55677782,2714.2,2713.6,0.68667541]
[1645936745082,1.16909241,2714.1,2713.6,0.68667541]
[1645936745484,0.00165905,2714.2,2713.6,0.68667541]
[1645936745687,1.2257,2714.3,2714.0,0.43667541]
[1645936745885,0.00165905,2714.2,2714.0,0.43667541]
[1645936746087,1.55668917,2714.4,2714.0,0.43667541]
[1645936746887,1.43039905,2714.3,2714.0,0.43667541]
[1645936747737,1.43039905,2714.3,2713.6,0.43667541]
[1645936748140,0.00165905,2714.4,2713.6,0.43667541]
[1645936748640,1.55838074,2714.4,2713.6,0.43667541]
[1645936748840,0.00165905,2714.4,2713.6,0.43667541]
[1645936749239,2.82558759,2714.4,2713.6,0.43667541]
[1645936749438,1.55668859,2714.3,2713.6,0.43667541]
[1645936752281,1.268899,2714.4,2713.6,0.43667541]
[1645936752678,1.268899,2714.4,2713.9,0.43667541]
[1645936752977,1.26723995,2714.4,2713.5,0.83]
[1645936753276,0.00165905,2714.3,2713.5,0.83]
[1645936754679,0.00165905,2714.3,2713.5,1.26667541]
[1645936759977,1.55837799,2714.3,2713.5,1.26667541]
[1645936760182,0.00165905,2714.3,2713.5,1.26667541]
[1645936760584,1.55837829,2714.3,2713.5,1.26667541]
[1645936761182,1.55837829,2714.3,2713.5,0.83]
[1645936761384,1.55837829,2714.3,2713.6,0.43667541]
[1645936762729,1.55837829,2714.3,2713.7,0.43667541]
[1645936762926,1.55671924,2714.3,2713.7,0.43667541]
[1645936763131,1.55671924,2714.3,2713.7,0.73667541]
[1645936763933,0.00165905,2714.5,2713.9,1.27888409]
[1645936764129,1.55661538,2714.5,2713.9,1.27888409]
[1645936764328,1.55661538,2714.5,2713.9,1.57888409]
[1645936765130,2.81241611,2714.5,2713.9,1.57888409]
[1645936765339,1.55661538,2714.4,2713.9,1.57888409]
[1645936766486,1.55661538,2714.4,2713.9,0.3]
[1645936766677,1.55661538,2714.4,2713.7,0.73667541]
[1645936766879,1.55545572,2714.4,2713.7,0.73667541]
[1645936768180,1.55545572,2714.4,2713.9,1.14194574]
[1645936768581,3.34429106,2714.6,2713.9,1.44194574]
[1645936768782,3.34263201,2714.6,2713.9,1.44194574]
[1645936768981,3.3214,2714.6,2713.9,1.44194574]
[1645936770231,3.3214,2714.6,2713.9,1.87862115]
[1645936772535,3.3214,2714.6,2713.9,1.44194574]
[1645936773736,4.35328893,2714.6,2713.9,1.44194574]
[1645936773971,3.3214,2714.6,2713.9,1.44194574]
[1645936775378,4.58607347,2714.6,2713.9,1.44194574]
[1645936776179,4.58607347,2714.6,2714.0,0.43667541]
[1645936776578,4.58607347,2714.6,2713.9,1.87862115]
[1645936778427,4.58607347,2714.6,2713.9,1.44194574]
[1645936779227,4.58607347,2714.6,2714.3,0.43667541]
[1645936779424,1.26467347,2714.6,2714.3,0.43667541]
[1645936779824,1.26467347,2714.6,2713.9,1.44194574]
[1645936780328,1.26467347,2714.6,2714.0,0.43667541]
[1645936785085,1.26467347,2714.6,2714.2,0.43667541]
[1645936785527,1.26467347,2714.6,2714.1,0.43667541]
[1645936785728,1.26633252,2714.6,2714.1,0.73667541]
[1645936785927,1.26467347,2714.6,2714.1,0.73667541]
[1645936786928,2.45945905,2714.7,2714.1,0.73667541]
[1645936787128,1.55660793,2714.6,2714.1,0.73667541]
[1645936788531,2.70503408,2714.6,2714.1,0.73667541]
[1645936788739,1.55660793,2714.5,2714.1,0.73667541]
[1645936788988,1.55551916,2714.4,2714.1,0.73667541]
[1645936789183,2.4578,2714.7,2714.1,0.73667541]
[1645936789980,3.54006028,2714.7,2714.1,0.73667541]
[1645936790584,2.4578,2714.7,2714.1,0.73667541]
[1645936791587,1.12264732,2714.6,2714.1,0.73667541]
[1645936791785,5.9578,2714.7,2714.1,0.73667541]
[1645936793029,7.11207317,2714.7,2714.1,0.73667541]
[1645936796140,3.61207317,2714.7,2714.1,0.73667541]
[1645936796583,7.11207317,2714.7,2714.1,0.73667541]
[1645936799490,7.11207317,2714.7,2713.9,0.3]
[1645936799689,7.11207317,2714.7,2713.9,0.73667541]
[1645936801735,1.39727912,2714.2,2713.9,0.73667541]
[1645936801940,0.00165905,2714.6,2713.9,0.73667541]
[1645936802137,5.95945905,2714.7,2713.9,0.73667541]
[1645936802536,5.95945905,2714.7,2714.6,0.43667541]
[1645936802537,0.00165905,2714.7,2714.6,0.43667541]
[1645936802739,16.83855905,2715.0,2714.6,0.73667541]
[1645936802937,16.83855905,2715.0,2714.9,0.43667541]
[1645936802938,11.5875,2715.0,2714.9,0.43667541]
[1645936803136,11.22,2715.0,2714.9,0.43667541]
[1645936803999,11.22553254,2715.1,2714.9,0.43667541]
[1645936804990,11.22,2715.1,2714.9,0.43667541]
[1645936805190,11.59303251,2715.1,2714.6,0.3]
[1645936805593,11.59303251,2715.1,2714.4,0.83]
[1645936806196,11.5875,2715.1,2714.4,0.83]
[1645936806395,0.00553261,2714.9,2714.5,0.43667541]
[1645936807500,11.5875,2715.1,2714.5,0.43667541]
[1645936807745,0.00553253,2714.9,2714.4,0.83]
[1645936808246,0.00553253,2714.9,2714.4,0.53]
[1645936808450,0.3675,2714.8,2714.0,1.2325]
[1645936808645,11.22,2714.6,2714.0,1.2325]
[1645936808850,11.22,2714.6,2713.8,0.43667541]
[1645936808851,11.5875,2714.4,2713.8,0.43667541]
[1645936809048,11.5875,2714.4,2713.7,0.25]
[1645936809049,16.27669532,2714.3,2713.7,0.25]
[1645936809248,1.35153544,2713.7,2713.6,0.43667541]
[1645936809448,3.5,2714.1,2713.6,0.43667541]
[1645936809658,11.22,2714.3,2713.6,0.43667541]
[1645936809850,1.55672888,2714.2,2713.6,0.43667541]
[1645936810251,0.3675,2714.4,2713.6,0.43667541]
[1645936810252,11.5875,2714.4,2713.6,0.43667541]
[1645936810450,11.5875,2714.4,2713.6,0.73667541]
[1645936810451,1.55666112,2714.3,2713.6,0.73667541]
[1645936810649,1.20063146,2713.9,2713.6,0.73667541]
[1645936811051,3.8675,2714.5,2713.6,0.73667541]
[1645936811255,13.14416449,2714.4,2713.6,0.73667541]
[1645936811504,16.64416449,2714.3,2713.6,0.73667541]
[1645936811689,11.5875,2714.1,2713.1,0.43763541]
[1645936811886,11.5875,2713.9,2713.1,0.43763541]
[1645936812086,12.77666449,2713.8,2713.1,0.43763541]
[1645936812588,1.55666449,2713.7,2713.1,0.43763541]
[1645936812788,1.22905638,2713.2,2713.1,0.43763541]
[1645936812988,1.2067,2713.7,2713.1,0.43667541]
[1645936813388,11.5875,2713.6,2713.1,0.43667541]
[1645936813588,15.0875,2713.6,2713.0,0.00096]
[1645936813788,11.5875,2713.4,2713.0,0.00096]
[1645936813990,14.72,2713.3,2712.9,2.10873982]
[1645936814292,15.0875,2713.3,2712.9,2.10873982]
[1645936814490,11.22,2713.1,2712.9,2.10873982]
[1645936814690,14.72,2713.0,2712.9,2.10371977]
[1645936815250,14.72,2713.0,2712.9,2.10873982]
[1645936815452,15.6942,2713.0,2712.9,2.10873982]
[1645936815954,4.4742,2713.0,2712.9,2.10371977]
[1645936816153,15.6942,2713.0,2712.9,2.10371977]
[1645936817253,15.6942,2713.0,2712.9,1.64261977]
[1645936818057,12.1942,2713.0,2712.9,1.64261977]
[1645936818255,15.6942,2713.0,2712.9,1.64261977]
[1645936819080,15.6942,2713.0,2712.9,1.64146852]
[1645936820285,15.6942,2713.0,2712.9,1.18036852]
[1645936821788,0.9742,2713.0,2712.9,1.18036852]
[1645936821987,3.5,2713.1,2712.9,1.18036852]
[1645936823034,11.22,2713.0,2712.9,1.18036852]
[1645936823233,11.22,2713.0,2712.9,0.72077846]
[1645936824236,11.22,2713.0,2712.9,0.71926852]
[1645936826041,3.5,2713.1,2712.9,0.71926852]
[1645936826241,12.37699694,2713.2,2712.9,0.25816852]
[1645936826486,1.15699694,2713.2,2712.9,0.25816852]
[1645936826991,1.15699694,2713.2,2712.9,0.26318857]
[1645936827387,12.37699694,2713.2,2712.9,0.26318857]
[1645936827791,12.37699694,2713.2,2712.9,0.25816852]
[1645936828188,1.15699694,2713.2,2712.9,0.26318857]
[1645936828989,1.15699694,2713.2,2712.9,0.25816852]
[1645936829188,1.15699694,2713.2,2712.9,0.26318857]
[1645936830236,1.15699694,2713.2,2712.9,0.25816852]
[1645936830449,1.15699694,2713.2,2712.9,0.26318857]
[1645936831044,1.15699694,2713.2,2712.9,0.69986398]
[1645936831442,1.15699694,2713.2,2712.9,0.69484393]
[1645936831841,1.15699694,2713.2,2712.9,0.69986398]
[1645936832742,1.15699694,2713.2,2712.9,0.69484393]
[1645936832944,1.15699694,2713.2,2712.9,0.69986398]
[1645936833150,3.5,2713.1,2712.9,0.26318857]
[1645936833343,11.22,2713.0,2712.9,0.26318857]
[1645936833842,11.22,2713.0,2712.9,0.25816852]
[1645936835286,11.22,2713.0,2712.8,14.16200866]
[1645936835485,12.37699694,2713.2,2712.8,14.16200866]
[1645936835690,1.15699694,2713.2,2712.8,14.16200866]
[1645936835886,2.15699694,2713.2,2712.8,14.16200866]
[1645936836089,1.15699694,2713.2,2712.8,14.16200866]
[1645936836289,1.15699694,2713.2,2712.8,14.15698852]
[1645936836491,1.15699694,2713.2,2712.9,0.00502005]
[1645936837493,1.15699694,2713.2,2712.8,14.15698852]
[1645936837929,1.15699694,2713.2,2712.9,0.00502005]
[1645936838533,1.15699694,2713.2,2712.8,13.70100857]
[1645936841342,1.15699694,2713.2,2712.8,13.24000857]
[1645936841583,1.0,2713.5,2712.9,0.43667541]
[1645936841784,15.72,2713.6,2712.9,0.43667541]
[1645936842184,15.72,2713.6,2712.9,0.43763541]
[1645936843183,1.12061408,2713.1,2712.9,0.00096]
[1645936843382,1.12061408,2713.1,2712.8,13.24000857]
[1645936844190,14.72,2713.0,2712.8,13.24000857]
[1645936844490,11.22,2712.9,2712.8,12.77900857]
[1645936845338,11.22,2713.0,2712.8,12.77900857]
[1645936846340,1.12061408,2713.1,2712.8,12.77900857]
[1645936849286,11.3674,2713.6,2712.8,12.77900857]
[1645936849287,11.22,2713.6,2712.8,12.77900857]
[1645936849486,11.22,2713.6,2712.8,12.77996857]
[1645936850293,1.38314428,2713.3,2712.8,12.77996857]
[1645936850495,1.38314428,2713.3,2712.8,12.77900857]
[1645936854549,1.55726666,2713.2,2712.8,12.77900857]
[1645936866086,12.77726666,2713.2,2712.8,12.77900857]
[1645936866287,11.21870694,2713.0,2712.8,12.77900857]
[1645936866586,1.92476666,2713.1,2712.8,12.77900857]
[1645936866587,12.7759736,2712.9,2712.8,12.77900857]
[1645936867938,12.7759736,2712.9,2712.3,0.43667541]
[1645936867939,8.0,2712.7,2711.8,1.85435266]
[1645936868142,15.78203153,2712.4,2712.0,0.13581678]
[1645936868340,15.78203153,2712.4,2711.3,0.5]
[1645936868341,1.92476666,2712.3,2711.3,0.5]
[1645936868538,13.2908736,2712.2,2711.3,0.5]
[1645936868743,11.58620694,2712.0,2711.3,0.5]
[1645936868941,11.21870694,2711.8,2711.3,0.5]
[1645936869142,1.37917184,2711.4,2711.3,0.5]
[1645936869349,12.59787878,2711.4,2711.3,0.5]
[1645936869545,13.36047878,2711.4,2711.3,0.5]
[1645936870143,2.14177184,2711.4,2711.3,0.5]
[1645936870545,13.36177184,2711.4,2710.8,0.43667541]
[1645936870742,12.96667184,2711.4,2710.8,0.43667541]
[1645936870945,11.22,2711.2,2710.8,0.43667541]
[1645936871347,11.22,2711.2,2710.5,0.22567541]
[1645936871348,11.5875,2711.2,2710.5,0.22567541]
[1645936871589,11.5875,2711.2,2710.2,0.00096]
[1645936871991,11.5875,2711.2,2710.0,0.00096]
[1645936872187,1.21042502,2710.4,2710.0,0.00096]
[1645936872393,1.21042502,2710.4,2709.8,9.87831398]
[1645936872592,1.21042502,2710.4,2710.1,0.01980986]
[1645936872791,0.3675,2711.1,2710.1,0.01980986]
[1645936873004,3.6474,2711.3,2710.1,0.01980986]
[1645936873298,0.1474,2711.2,2710.1,0.01980986]
[1645936873500,0.1474,2711.2,2709.9,0.00096]
[1645936873699,0.1474,2711.2,2710.6,0.00495154]
[1645936873901,1.12042104,2710.7,2710.6,0.00495154]
[1645936874100,3.5,2711.2,2710.6,0.00495154]
[1645936874300,3.5,2711.2,2710.2,0.87876875]
[1645936874504,3.5,2711.2,2710.3,0.00096]
[1645936875103,1.43012556,2711.2,2710.7,1.39958852]
[1645936875338,0.13819997,2711.5,2710.7,1.39958852]
[1645936875737,0.13819997,2711.5,2710.7,1.40054852]
[1645936876137,0.00444538,2711.2,2710.7,1.70054852]
[1645936876337,0.00444538,2711.2,2710.7,1.69958852]
[1645936877145,1.05354048,2711.3,2710.7,1.69958852]
[1645936877339,0.00591199,2711.1,2710.7,1.23858852]
[1645936877540,0.00591199,2711.1,2710.7,1.23954852]
[1645936877744,0.00591199,2711.1,2710.7,1.23858852]
[1645936878348,0.13819997,2711.5,2710.7,1.23858852]
[1645936878545,0.00564471,2711.0,2710.7,0.00096]
[1645936878745,0.00564471,2711.0,2710.6,0.8975]
[1645936879184,0.00564471,2711.0,2710.6,1.1975]
[1645936879582,1.23863934,2711.4,2710.9,1.44014585]
[1645936879786,1.23863934,2711.4,2710.8,0.3]
[1645936879787,0.00564545,2710.9,2710.8,0.3]
[1645936879984,0.00564545,2710.9,2710.6,2.1975]
[1645936880184,0.00564545,2710.9,2710.6,1.1975]
[1645936880390,0.00564545,2710.9,2710.6,0.7365]
[1645936880790,1.23863934,2711.4,2710.6,1.82554873]
[1645936880991,1.23863934,2711.4,2710.6,0.36996]
[1645936880992,0.00564547,2710.9,2710.6,0.36996]
[1645936881191,0.00564547,2710.9,2710.4,2.12876]
[1645936881391,0.00564547,2710.9,2710.3,0.8975]
[1645936881991,1.23863934,2711.4,2710.3,0.8975]
[1645936882191,0.00564554,2710.7,2710.4,0.00096]
[1645936882396,0.00564554,2710.7,2710.3,9.65435034]
[1645936882591,0.00564554,2710.7,2710.3,10.65435034]
[1645936883034,0.28559997,2711.5,2710.3,10.65435034]
[1645936883235,1.27060549,2711.1,2710.4,0.00096]
[1645936886493,1.27060549,2711.1,2710.4,0.53096]
[1645936886886,0.00584862,2710.9,2710.4,0.53096]
[1645936887889,1.27060549,2711.1,2710.4,0.53096]
[1645936888186,0.00584867,2710.8,2710.4,0.53096]
[1645936888389,0.00584867,2710.8,2710.4,0.53]
[1645936889186,0.13819997,2711.5,2710.4,0.53]
[1645936889386,0.0058487,2710.7,2710.5,0.00096]
[1645936889586,0.0058487,2710.7,2710.4,0.53]
[1645936890340,1.15739481,2711.3,2710.4,0.53]
[1645936890539,1.15739481,2711.3,2710.8,1.26564953]
[1645936890739,1.15739481,2711.3,2710.8,1.56564953]
[1645936891540,0.13819997,2711.5,2710.8,1.56564953]
[1645936891742,0.00446563,2711.2,2710.8,1.56660953]
[1645936891941,0.00446563,2711.2,2710.8,1.56564953]
[1645936892640,0.00446563,2711.2,2710.7,0.3]
[1645936892846,0.28559997,2711.5,2710.7,0.3]
[1645936893039,0.00446563,2711.1,2710.6,0.00096]
[1645936893243,0.00446563,2711.1,2710.4,6.16796]
[1645936893641,0.00446563,2711.1,2710.4,2.96876]
[1645936893841,1.22991254,2711.3,2710.8,1.42847573]
[1645936894289,0.28559997,2711.5,2710.8,1.72847573]
[1645936894290,0.00593031,2710.9,2710.8,1.72847573]
[1645936894489,0.00593031,2710.9,2710.8,1.72943573]
[1645936894688,0.00593031,2710.9,2710.8,1.72847573]
[1645936895190,0.13819997,2711.5,2710.8,1.72847573]
[1645936895397,0.00593026,2711.0,2710.8,1.72943573]
[1645936895593,0.00593026,2711.0,2710.8,1.72847573]
[1645936896294,1.45726509,2711.5,2710.8,1.72847573]
[1645936896493,0.00593023,2711.0,2710.8,1.72943573]
[1645936896694,0.00593023,2711.0,2710.8,1.72847573]
[1645936897493,1.45726509,2711.5,2710.8,1.72847573]
[1645936897735,0.00593023,2711.0,2710.8,1.72943573]
[1645936897940,0.00593023,2711.0,2710.8,1.72847573]
[1645936898736,1.45726509,2711.5,2710.8,1.72847573]
[1645936898936,0.00593023,2711.0,2710.8,0.30096]
[1645936899138,0.00593023,2711.0,2710.8,7.29363404]
[1645936899338,0.00593023,2711.0,2710.8,7.59363404]
[1645936899743,0.00593023,2711.0,2710.8,7.89363404]
[1645936899944,0.13819997,2711.5,2710.8,7.89363404]
[1645936900144,0.00593023,2711.0,2710.8,7.89363404]
[1645936901044,0.13819997,2711.5,2710.8,7.89363404]
[1645936901488,0.00593023,2711.0,2710.9,8.61260107]
[1645936901888,0.00593023,2711.0,2710.9,8.91260107]
[1645936902289,1.48183851,2711.5,2710.9,8.91260107]
[1645936902489,0.0059302,2711.1,2710.9,8.91260107]
[1645936903098,0.0059302,2711.1,2710.9,7.59363404]
[1645936903491,1.48183851,2711.5,2710.9,7.59363404]
[1645936903692,0.00593018,2711.1,2710.9,7.59363404]
[1645936904791,0.13674637,2711.5,2710.9,7.59363404]
[1645936904992,0.00593018,2711.1,2710.9,7.59363404]
[1645936906037,0.13674637,2711.5,2710.9,7.59363404]
[1645936906237,0.00593018,2711.1,2710.9,7.59363404]
[1645936907037,0.13674637,2711.5,2710.9,7.59363404]
[1645936907441,0.00593018,2711.1,2710.9,8.70104312]
[1645936908341,1.02818965,2711.4,2710.9,8.70104312]
[1645936908541,0.00593018,2711.1,2710.9,7.59363404]
[1645936909593,0.13674637,2711.5,2710.9,7.59363404]
[1645936909793,0.00593018,2711.1,2711.0,1.08306071]
[1645936910698,0.13674637,2711.5,2711.0,1.08306071]
[1645936911194,0.00593015,2711.2,2711.0,1.08306071]
[1645936911593,0.00593015,2711.2,2710.9,7.59363404]
[1645936911892,0.13674637,2711.5,2710.9,7.59363404]
[1645936912092,0.00593015,2711.2,2710.9,7.59363404]
[1645936913142,0.13674637,2711.5,2710.9,7.59363404]
[1645936913353,0.00593015,2711.2,2710.9,7.59363404]
[1645936914348,0.13674637,2711.5,2710.9,7.59363404]
[1645936914549,0.00593015,2711.2,2710.9,7.59363404]
[1645936915155,0.00593015,2711.2,2711.0,0.8975]
[1645936915352,0.00593015,2711.2,2711.0,1.1975]
[1645936915958,0.00593012,2711.2,2711.0,1.1975]
[1645936916896,1.10876997,2711.6,2711.0,0.83]
[1645936917095,0.00526653,2711.2,2711.1,0.00096]